[Event "*** Titled Tuesday Blitz"]
[Site "Chess.com"]
[Date "2020.11.24"]
[Round "11"]
[White "BogdanDeac"]
[Black "BocharovD"]
[Result "1/2-1/2"]
[WhiteElo "2914"]
[BlackElo "2845"]
[TimeControl "180+1"]
[EndTime "12:27:19 PST"]
[Termination "Game drawn by repetition"]

1. Nf3 {[%clk 0:03:00.9]} 1... c5 {[%clk 0:02:59.5]} 2. e3 {[%clk 0:03:00.4]}
2... Nf6 {[%clk 0:02:52.6]} 3. b3 {[%clk 0:02:53.7]} 3... g6 {[%clk 0:02:49.5]}
4. Bb2 {[%clk 0:02:53.8]} 4... Bg7 {[%clk 0:02:50.1]} 5. d4 {[%clk 0:02:54.1]}
5... O-O {[%clk 0:02:49.4]} 6. dxc5 {[%clk 0:02:54]} 6... Qa5+ {[%clk
0:02:47.1]} 7. c3 {[%clk 0:02:54]} 7... Qxc5 {[%clk 0:02:46.6]} 8. Ba3 {[%clk
0:02:53.9]} 8... Qc7 {[%clk 0:02:33.5]} 9. Bxe7 {[%clk 0:02:50.7]} 9... Re8
{[%clk 0:02:33.7]} 10. Bxf6 {[%clk 0:02:30.9]} 10... Bxf6 {[%clk 0:02:33.1]} 11.
Nd4 {[%clk 0:02:31]} 11... Nc6 {[%clk 0:02:25.9]} 12. Be2 {[%clk 0:02:29.1]}
12... d5 {[%clk 0:02:25.9]} 13. O-O {[%clk 0:02:28.2]} 13... Bd7 {[%clk
0:02:19.9]} 14. Nd2 {[%clk 0:02:18.9]} 14... Rad8 {[%clk 0:02:19.2]} 15. N2f3
{[%clk 0:02:16.1]} 15... Ne7 {[%clk 0:02:13.7]} 16. Rc1 {[%clk 0:02:13.2]} 16...
Nc8 {[%clk 0:02:11.7]} 17. Bb5 {[%clk 0:01:49.6]} 17... Nd6 {[%clk 0:01:56.2]}
18. Bxd7 {[%clk 0:01:48.4]} 18... Rxd7 {[%clk 0:01:57.1]} 19. Qd3 {[%clk
0:01:42]} 19... Qa5 {[%clk 0:01:51.7]} 20. a4 {[%clk 0:01:40.1]} 20... Rc8
{[%clk 0:01:46.9]} 21. Rc2 {[%clk 0:00:30.3]} 21... Rdc7 {[%clk 0:01:43.2]} 22.
Rfc1 {[%clk 0:00:29]} 22... a6 {[%clk 0:01:43.1]} 23. g3 {[%clk 0:00:20.7]}
23... Qb6 {[%clk 0:01:36.2]} 24. Kg2 {[%clk 0:00:19.5]} 24... Ne4 {[%clk
0:01:33.4]} 25. b4 {[%clk 0:00:16]} 25... Rc4 {[%clk 0:01:22.4]} 26. Ne2 {[%clk
0:00:09.9]} 26... Qc6 {[%clk 0:01:02.5]} 27. b5 {[%clk 0:00:08.3]} 27... axb5
{[%clk 0:01:01.1]} 28. Nfd4 {[%clk 0:00:08.4]} 28... Bxd4 {[%clk 0:00:56.4]} 29.
Nxd4 {[%clk 0:00:08.7]} 29... Qc5 {[%clk 0:00:56.5]} 30. axb5 {[%clk 0:00:08.5]}
30... Nxc3 {[%clk 0:00:52.5]} 31. Nb3 {[%clk 0:00:08.7]} 31... Qb4 {[%clk
0:00:50.2]} 32. Nd2 {[%clk 0:00:08.6]} 32... R4c5 {[%clk 0:00:47.7]} 33. Nf3
{[%clk 0:00:07]} 33... Nxb5 {[%clk 0:00:45.3]} 34. Rxc5 {[%clk 0:00:05.8]} 34...
Rxc5 {[%clk 0:00:45.4]} 35. Rb1 {[%clk 0:00:05.7]} 35... Qc4 {[%clk 0:00:45.5]}
36. Qd2 {[%clk 0:00:06.1]} 36... Qc3 {[%clk 0:00:39.4]} 37. Qxc3 {[%clk
0:00:05.4]} 37... Nxc3 {[%clk 0:00:39.5]} 38. Rxb7 {[%clk 0:00:06]} 38... Ne4
{[%clk 0:00:38.4]} 39. Ne5 {[%clk 0:00:05.6]} 39... f6 {[%clk 0:00:32.8]} 40.
Rb8+ {[%clk 0:00:05.8]} 40... Kg7 {[%clk 0:00:32.7]} 41. Rb7+ {[%clk 0:00:05.6]}
41... Kg8 {[%clk 0:00:29.6]} 42. Nd3 {[%clk 0:00:04.8]} 42... Rc2 {[%clk
0:00:27.8]} 43. Nf4 {[%clk 0:00:05.3]} 43... Rxf2+ {[%clk 0:00:26]} 44. Kg1
{[%clk 0:00:05.9]} 44... Rd2 {[%clk 0:00:26]} 45. Rd7 {[%clk 0:00:06.1]} 45...
Ng5 {[%clk 0:00:25.7]} 46. h4 {[%clk 0:00:04.9]} 46... Nf3+ {[%clk 0:00:23.5]}
47. Kf1 {[%clk 0:00:05.2]} 47... Nh2+ {[%clk 0:00:19.7]} 48. Ke1 {[%clk
0:00:05.6]} 48... Nf3+ {[%clk 0:00:20.2]} 49. Kf1 {[%clk 0:00:06.1]} 49... d4
{[%clk 0:00:20.7]} 50. exd4 {[%clk 0:00:04.8]} 50... Rxd4 {[%clk 0:00:20.5]} 51.
Ra7 {[%clk 0:00:04.4]} 51... Nxh4 {[%clk 0:00:16.8]} 52. Ra8+ {[%clk 0:00:02.6]}
52... Kf7 {[%clk 0:00:16.6]} 53. Ra7+ {[%clk 0:00:03.5]} 53... Kg8 {[%clk
0:00:16.8]} 54. Ra8+ {[%clk 0:00:03.8]} 54... Kf7 {[%clk 0:00:17.3]} 55. Ra7+
{[%clk 0:00:04.7]} 55... Ke8 {[%clk 0:00:17.7]} 56. Ne6 {[%clk 0:00:05]} 56...
Re4 {[%clk 0:00:16.4]} 57. Nc7+ {[%clk 0:00:04.8]} 57... Kd7 {[%clk 0:00:16.8]}
58. gxh4 {[%clk 0:00:04.8]} 58... Rxh4 {[%clk 0:00:17]} 59. Nd5+ {[%clk
0:00:05]} 59... Ke6 {[%clk 0:00:17.3]} 60. Ne3 {[%clk 0:00:05.3]} 60... f5
{[%clk 0:00:17.1]} 61. Kf2 {[%clk 0:00:05.6]} 61... h5 {[%clk 0:00:14.4]} 62.
Ng2 {[%clk 0:00:04.6]} 62... Rg4 {[%clk 0:00:13]} 63. Ra6+ {[%clk 0:00:04.9]}
63... Kf7 {[%clk 0:00:12.8]} 64. Kf3 {[%clk 0:00:05.2]} 64... g5 {[%clk
0:00:13.3]} 65. Ne3 {[%clk 0:00:05.4]} 65... Rf4+ {[%clk 0:00:13.7]} 66. Kg2
{[%clk 0:00:05.8]} 66... h4 {[%clk 0:00:14]} 67. Rb6 {[%clk 0:00:06]} 67... g4
{[%clk 0:00:13.6]} 68. Rb5 {[%clk 0:00:05.3]} 68... h3+ {[%clk 0:00:13.6]} 69.
Kg1 {[%clk 0:00:03.6]} 69... Kg6 {[%clk 0:00:13.7]} 70. Nf1 {[%clk 0:00:03.9]}
70... Rf3 {[%clk 0:00:11.9]} 71. Rb8 {[%clk 0:00:04.1]} 71... Kg5 {[%clk
0:00:11.5]} 72. Rg8+ {[%clk 0:00:04]} 72... Kf4 {[%clk 0:00:11.8]} 73. Rb8
{[%clk 0:00:03.8]} 73... Rc3 {[%clk 0:00:11.5]} 74. Rb4+ {[%clk 0:00:03.5]}
74... Kg5 {[%clk 0:00:11.6]} 75. Rb8 {[%clk 0:00:03.7]} 75... g3 {[%clk
0:00:11]} 76. Nxg3 {[%clk 0:00:01.8]} 76... Rxg3+ {[%clk 0:00:10.6]} 77. Kh2
{[%clk 0:00:02.7]} 77... Rd3 {[%clk 0:00:09.7]} 78. Rg8+ {[%clk 0:00:02.5]}
78... Kf4 {[%clk 0:00:10]} 79. Rf8 {[%clk 0:00:02.5]} 79... Rf3 {[%clk
0:00:08.7]} 80. Re8 {[%clk 0:00:02.1]} 80... Re3 {[%clk 0:00:08.5]} 81. Ra8
{[%clk 0:00:02.3]} 81... Kf3 {[%clk 0:00:08.5]} 82. Kxh3 {[%clk 0:00:01.6]}
82... f4 {[%clk 0:00:09.1]} 83. Kh2 {[%clk 0:00:01.9]} 83... Kf2 {[%clk
0:00:09.4]} 84. Ra1 {[%clk 0:00:01.5]} 84... Re1 {[%clk 0:00:08.9]} 85. Ra2+
{[%clk 0:00:01.6]} 85... Re2 {[%clk 0:00:09.4]} 86. Ra1 {[%clk 0:00:02.1]} 86...
f3 {[%clk 0:00:09.8]} 87. Rb1 {[%clk 0:00:02.5]} 87... Re1 {[%clk 0:00:10]} 88.
Rb2+ {[%clk 0:00:02.6]} 88... Ke3 {[%clk 0:00:09.6]} 89. Rb3+ {[%clk 0:00:02.1]}
89... Ke2 {[%clk 0:00:09.8]} 90. Rb2+ {[%clk 0:00:01.9]} 90... Kf1 {[%clk
0:00:10]} 91. Kg3 {[%clk 0:00:01.4]} 91... Re2 {[%clk 0:00:09.2]} 92. Rb1+
{[%clk 0:00:01.7]} 92... Re1 {[%clk 0:00:09.6]} 93. Rb2 {[%clk 0:00:02]} 93...
Re2 {[%clk 0:00:09.9]} 94. Rb1+ {[%clk 0:00:02.4]} 94... Re1 {[%clk 0:00:10.3]}
95. Rb2 {[%clk 0:00:03]} 1/2-1/2